Cogmind - Beta 15 @@@ ROGUE MODE // 2025.06.01 @ 23:56:09 Player: Duduxx Result: Destroyed by D-53 Grenadier with Mini Grenade Launcher Performance ------------- Evolutions (0) 0 Regions Visited (2) 400 Robots Destroyed (8) 40 Value Destroyed (158) 158 Prototype IDs (0) 0 Alien Tech Used (0) 0 Bonus (0) 0 TOTAL SCORE: 598 Bonus ------- None Cogmind --------- Core Integrity 0/250 Matter 282/300 Energy 53/100 System Corruption 2% Temperature Cool (0) Movement Rolling (100) Location -10/Mines Parts ------- > --- POWER (1) -------- (None) > --- PROPULSION (2) --- Compact Wheel > --- UTILITY (2) ------ Small Storage Unit Utility Shielding > --- WEAPON (2) ------- (None) > --- INVENTORY (8) ---- Ion Engine Mining Laser Peak State ------------ > --- POWER ------------ Light Ion Engine > --- PROPULSION ------- Light Treads Light Treads > --- UTILITY ---------- Small Storage Unit Improved Terrain Scanner > --- WEAPON ----------- Assault Rifle Light Assault Rifle > --- INVENTORY -------- Ion Engine Wheel Compact Wheel [Rating: 9] Favorites ----------- Power Light Ion Engine Engine Light Ion Engine Propulsion Light Treads Treads Light Treads Wheel Wheel Utility Small Storage Unit Device Improved Terrain Scanner Storage Small Storage Unit Protection Utility Shielding Weapon Light Assault Rifle Ballistic Gun Light Assault Rifle Build | -11 -10 -10 ------- Run | Yrd Mat Min Slots Evolved . | . . . Power . | . . . Propulsion . | . . . Utility . | . . . Weapon . | . . . Parts Attached 10 | 7 . 3 Power 1 | 1 . . Engine 1 | 1 . . Core . | . . . Reactor . | . . . Propulsion 4 | 2 . 2 Treads 2 | 2 . . Leg . | . . . Wheel 2 | . . 2 Hover . | . . . Flight . | . . . Utility 3 | 2 . 1 Device 1 | 1 . . Storage 1 | 1 . . Processor . | . . . Hackware . | . . . Protection 1 | . . 1 Artifact . | . . . Weapon 2 | 2 . . Energy Gun . | . . . Energy Cannon . | . . . Ballistic Gun 2 | 2 . . Ballistic Cannon . | . . . Launcher . | . . . Special Weapon . | . . . Impact Weapon . | . . . Slashing Weapon . | . . . Piercing Weapon . | . . . Special Melee Weapon . | . . . Unidentified Prototypes . | . . . Parts Lost 6 | . . 6 Power 1 | . . 1 Propulsion 2 | . . 2 Utility 1 | . . 1 Weapon 2 | . . 2 Highest Loss Streak 6 | . . 6 To Critical Strikes . | . . . Average Backups 3 | 2 3 4 Power . | . 1 1 Propulsion 1 | 1 2 2 Utility . | . . . Weapon . | . . 1 Tool/Special . | . . . Unused Backups 1 | . . 1 Power 1 | . . 1 Propulsion . | . . . Utility . | . . . Weapon . | . . . Tool/Special . | . . . Average Slot Usage (%) 98 | . 100 95 Engine 13 | . 14 13 Treads 27 | . 28 26 Device 14 | . 14 14 Storage 14 | . 14 14 Ballistic Gun 27 | . 28 27 Peak Build Rating 9 | 9 9 9 Average Rating 8 | 5 9 8 On Entrance 6 | . 9 9 Naked Turns . | . . . Heaviest Build 12 | 12 12 12 Greatest Support 40 | 40 40 40 Greatest Overweight (x) . | . . . Average Overweight (x) . | . . . Largest Inventory Capacity 8 | 8 8 8 Average Capacity 7 | 7 8 8 Most Carried 5 | 3 4 5 Average Carried 3 | 2 3 4 Final Capacity 8 | 8 8 8 Final Carried 4 | 3 4 2 Class Distribution -------------------- 100% | Mutant Dominant Class ---------------- Mutant | -10/Materials Mutant | -10/Mines Resources | -11 -10 -10 ----------- Run | Yrd Mat Min Matter Collected 373 | 238 79 56 Remotely . | . . . Salvage Created 152 | 11 128 13 Parts 17 | 3 11 3 Haulers Intercepted . | . . . Recyclers Shooed . | . . . Parts Field Recycled . | . . . Retrieved Matter . | . . . Parts Self-Destructed . | . . . Prevented . | . . . Kills | -11 -10 -10 ------- Run | Yrd Mat Min Combat Hostiles Destroyed 4 | . 3 1 Guns 4 | . 3 1 Classes Destroyed 5 | 1 3 1 Tunneler 2 | 1 . 1 Operator 1 | . 1 . Watcher 1 | . 1 . Swarmer 1 | . . 1 Grunt 3 | . 3 . Best Kill Streak 4 | 1 4 1 Combat Bots Only 2 | . 2 1 Max Kills in Single Turn 1 | 1 1 1 Gunslinging . | . . . Exploded . | . . . Melee . | . . . Uniques/NPCs Destroyed . | . . . Combat | -11 -10 -10 -------- Run | Yrd Mat Min Hostile Shots Fired 42 | . 25 17 Missed 6 | . 5 1 Hits 36 | . 20 16 Projectile 36 | . 20 16 AOE 11 | . . 11 Damage Taken 697 | . 213 484 Core 258 | . 11 247 Absorbed by Shields . | . . . Core Remaining (%) 100 | 100 . . Volleys Fired 29 | 8 13 8 Largest 2 | 2 2 2 Hottest 40 | 40 40 40 Shots Fired 55 | 16 26 13 Gun 55 | 16 26 13 Cannon . | . . . Launcher . | . . . Special . | . . . Kinetic 55 | 16 26 13 Thermal . | . . . Explosive . | . . . Electromagnetic . | . . . Robot Hit Streak 6 | 6 6 3 Robot Miss Streak 7 | 2 1 7 Penetration Max . | . . . Secondary Targets . | . . . Shots Hit Robots 35 | 11 19 5 Core Hits 14 | 1 10 3 Critical Kills . | . . . Critical Parts Destroyed . | . . . Critical Strikes . | . . . Melee Attacks . | . . . Impact . | . . . Slashing . | . . . Piercing . | . . . Sneak Attacks . | . . . Combat Hostiles . | . . . Follow-up Attacks . | . . . Damage Inflicted 364 | 108 204 52 Guns 359 | 108 201 50 Cannons . | . . . Explosions . | . . . Melee . | . . . Ramming 5 | . 3 2 Kinetic 359 | 108 201 50 Thermal . | . . . Explosive . | . . . Electromagnetic . | . . . Impact . | . . . Slashing . | . . . Piercing . | . . . Highest Corruption 2 | . 2 2 Average Corruption 2 | . 2 2 Corruption Purged . | . . . Corruption Blocked . | . . . Effects 2 | . . 2 Matter Fused 1 | . . 1 Parts Rejected 1 | . . 1 Overload Shots . | . . . Overflow Damage . | . . . Projectiles . | . . . Explosions . | . . . Melee . | . . . Knockbacks . | . . . Impact . | . . . Kinetic . | . . . Secondary . | . . . Self-Inflicted Damage . | . . . Shots . | . . . Rammed 1 | . 1 . Targets Rammed 2 | . 1 1 Kicked . | . . . Crushed 1 | . . 1 Highest Temperature 12 | . 12 . Average Temperature 7 | . 7 . Received Heat Transfer 120 | . 120 . Siege Activations . | . . . Martial Activations . | . . . Shielding Activations . | . . . Robots Disrupted . | . . . Combat Hostiles . | . . . Robots Corrupted . | . . . Combat Hostiles . | . . . Parts Fried . | . . . Impact Corruptions . | . . . Robots Melted . | . . . Combat Hostiles . | . . . Parts Melted . | . . . Heat Transferred . | . . . Parts Sabotaged . | . . . Parts Stolen . | . . . Parts Stripped . | . . . Power Chain Reactions . | . . . Alert | -11 -10 -10 ------- Run | Yrd Mat Min Maximum Alert Level . | . . . Low Security (%) 100 | 100 100 100 Level 1 . | . . . Level 2 . | . . . Level 3 . | . . . Level 4 . | . . . Level 5 . | . . . High Security . | . . . Max Security . | . . . Peak Influence 50 | 5 45 50 Initial 13 | . . 13 Average 10 | . 10 19 Influence Increases 142 | 5 82 55 Destroy 0b10 Robot/C 80 | . 60 20 Destroy 0b10 Robot/NC 20 | 5 10 5 Destroy Leader 12 | . 12 . Lose Combat Pursuer 30 | . . 30 Influence Decreases 142 | 5 47 90 Entered New Map 22 | . . 22 Time Decay 100 | 5 47 48 Lost Part 20 | . . 20 Squads Dispatched 2 | . 2 . Investigation . | . . . Extermination . | . . . Reinforcement 2 | . 2 . Assault . | . . . Garrison . | . . . Intercept . | . . . Searches Triggered . | . . . Construction Impeded . | . . . Haulers Reinforced . | . . . Active Scanning Responses . | . . . Cargo Convoy Interrupts . | . . . Stealth | -11 -10 -10 --------- Run | Yrd Mat Min Distress Signals 1 | . 1 . Communications Jammed . | . . . Distress Signals . | . . . Times Spotted 13 | . 9 4 Peak Tracking Total 3 | . 3 3 Tactical Retreats 1 | . . 1 Traps | -11 -10 -10 ------- Run | Yrd Mat Min Traps Triggered 1 | . 1 . Indirectly . | . . . Trap Hack Attempts . | . . . Triggered . | . . . Disarmed . | . . . Reprogrammed . | . . . Reused . | . . . Traps Extracted . | . . . Installed . | . . . Triggered . | . . . Machines | -11 -10 -10 ---------- Run | Yrd Mat Min Machines Disabled . | . . . Max in Single Turn . | . . . Machines Repaired . | . . . Machines Dismantled . | . . . Machines Sabotaged . | . . . Overloaded Fab Kills . | . . . Hacking | -11 -10 -10 --------- Run | Yrd Mat Min Machines Accessed . | . . . Terminals . | . . . Fabricators . | . . . Repair Stations . | . . . Recycling Units . | . . . Scanalyzers . | . . . Garrison Access . | . . . Total Hacks . | . . . Successful . | . . . Failed . | . . . Catastrophic . | . . . Database Lockouts . | . . . Manual . | . . . Terminals . | . . . Fabricators . | . . . Repair Stations . | . . . Recycling Units . | . . . Scanalyzers . | . . . Garrison Access . | . . . Terminal Hacks . | . . . Fabricator Hacks . | . . . Repair Station Hacks . | . . . Recycling Unit Hacks . | . . . Scanalyzer . | . . . Garrison Access Hacks . | . . . Unauthorized Hacks . | . . . Terminals . | . . . Fabricators . | . . . Repair Stations . | . . . Recycling Units . | . . . Scanalyzers . | . . . Garrison Access . | . . . Data Cores Recovered . | . . . Used . | . . . Hacking Detections . | . . . Full Trace Events . | . . . Feedback Events . | . . . Feedback Blocked . | . . . Robot Schematics Acquired . | . . . Robots Built . | . . . Authchips . | . . . Time . | . . . Total Robot Build Rating . | . . . Part Schematics Acquired . | . . . Parts Built . | . . . Authchips . | . . . Time . | . . . Total Part Build Rating . | . . . Parts Repaired . | . . . Time . | . . . Parts Recycled . | . . . Recycled Matter . | . . . Retrieved Matter . | . . . Retrieved Components . | . . . Parts Scanalyzed . | . . . Part Schematics Acquired . | . . . Parts Damaged . | . . . Bothacking | -11 -10 -10 ------------ Run | Yrd Mat Min Used RIF Installer . | . . . Robots Hacked . | . . . Non-combat . | . . . Combat . | . . . Robot Hacks Applied . | . . . Relay Couplers Released . | . . . Fabnet Peak Effective % . | . . . Robots Rewired . | . . . Allies Hacked . | . . . Hacks Repelled . | . . . Allies | -11 -10 -10 -------- Run | Yrd Mat Min Total Allies . | . . . Largest Group . | . . . Highest-Rated Group . | . . . Highest-Rated Ally . | . . . Total Orders . | . . . Ally Attacks . | . . . Total Damage . | . . . Kills . | . . . Allies Corrupted . | . . . Allies Melted . | . . . Intel | -11 -10 -10 ------- Run | Yrd Mat Min Active Infowar (turns) 364 | 30 199 135 Terrain 364 | 30 199 135 Robot Analysis Total . | . . . Derelict Logs Recovered 1 | . . 1 Drone Launches . | . . . Drone Recoveries . | . . . Exploration | -11 -10 -10 ------------- Run | Yrd Mat Min Turns Passed 455 | 119 199 137 Spaces Moved 227 | 56 101 70 Core 5 | 5 . . Treads 222 | 51 101 70 Legs . | . . . Wheels . | . . . Hover . | . . . Flight . | . . . Fastest Speed 50 | 50 160 160 Average Speed 157 | 150 160 160 Slowest Speed 160 | 160 160 160 Overloaded Moves . | . . . Propulsion Burnouts . | . . . Robots Hopped . | . . . Potential Cave-ins . | . . . Cave-ins Triggered . | . . . Exploration Rate (%) 20 | 6 32 24 Regions Visited 2 Branch Regions 1 Pre-discovered Areas 1 | . . 1 Known Exits Taken . | . . . Unknown Exits Taken 2 | 1 1 . Scrap Searched 1 | . . 1 Spaces Dug . | . . . Terrain Destroyed . | . . . Melee . | . . . Projectile . | . . . AOE . | . . . Terrain Rammed . | . . . Walls Destroyed . | . . . Machines Disabled . | . . . Actions | -11 -10 -10 --------- Run | Yrd Mat Min Total 271 | 73 115 83 Wait . | . . . Move 225 | 55 100 70 Hop . | . . . Pick Up 5 | 3 1 1 Fast Attach 7 | 7 . . Attach 3 | . . 3 Detach . | . . . Swap . | . . . Drop . | . . . Fire 29 | 8 13 8 Melee . | . . . Ram . | . . . Kick . | . . . Crush 2 | . 1 1 Escape Stasis . | . . . Rewire . | . . . Trap . | . . . Miscellaneous . | . . . Route ------- -11/Scrapyard -10/Materials -10/Mines History --------- Turn | Location | Event 32 | -11/Scrapyard | Discovered new exit (range 16) 120 | -11/Scrapyard | Entered Materials 283 | -10/Materials | Discovered new exit (range 13) 311 | -10/Materials | Build established: Mutant 319 | -10/Materials | Entered Mines 368 | -10/Mines | Learned location of Zion (-7) 397 | -10/Mines | Found a hidden stash of uninstalled traps 425 | -10/Mines | Assembled infested the area 451 | -10/Mines | Core integrity fell below 50% 454 | -10/Mines | Core integrity fell below 20% 456 | -10/Mines | Destroyed by D-53 Grenadier with Mini Grenade Launcher Last Messages --------------- 00406_ R-06 Scavenger collects Lgt. Assault Rifle. 00425_ ALERT: Infestation in the mines, dispatching Demolisher response squad. 00444_ C-30 ARC bursts open, deploying its payload. 00444_ D-53 Grenadier unfolds itself. 00446_ K-01 Serf collects debris. 00447_ System corrupted: Lgt. Treads rejected. 00447_ Lgt. Treads destroyed. 00447_ Assault Rifle destroyed. 00447_ Lgt. Ion Engine destroyed. 00450_ K-01 Serf collects debris. 00454_ Lgt. Assault Rifle destroyed. 00454_ Imp. Terrain Scanner destroyed. 00455_ U-05 Engineer lays Concrete. 00455_ Wheel destroyed. 00455_ R-06 Scavenger destroyed. 00455_ K-01 Serf collects debris. 00456_ U-05 Engineer lays Concrete. Map ----- +----------------------------------------------------+ | ????????????????????? ?????# #????????????? | | ????????????????????#### ??????# #????????????? | | ???????????????????????#### ??????# #?????? ?????? | | ??????????????????????????## ### #????????????? | | ????????????????????????#??# #????????????? | | ????????????????????#####??## #### #??????###??#? | | ???????????????????## ##??????#?# #????# ???? | | ???????????????????# ########## ###### #?????? | | ???????????????????# = % #?????? | | ???????????????????# ###################?????? | | ???????????????????# ##?????????????????????? | | ?????????? ????????## ##??#?????????????????? | | ????????????????????## #?##?#???????#?????#?? | | ?????????????????????## #????????????????????? | | ??????????????????????# ##???????????????#???? | | ?????????????????????## && #????##??????????????? | | ????????????????#?????#& & ##????????????????????? | | ??????????????????????## ##??????????#??????????? | | ????????????????#???#??# ##?##?#??????#??????????? | | ?????????????????#### ## #??##??????#????????????? | | ?????????????????# u #####?????????????#?????? | | ??????????#??????# ##### ##?#?????????????????? | | ?????????#??????????## ##?????#???????#????? | | ????????????????????# % #?#?#??????????????? | | ????????????????#???# #????#?????????????? | | ????????????????#? ?# @ #?????????#??????#?? | | ????????????????????# ###????????????????? | | ?????????????????#?## ##???????????????? | | ????????????????????## ##????#???#?????? | | ???????????????#???### ##?##??????????? | | ??????????????? ##????????????? | | ??????????????? ##???????????? | | ???????????????######## dd k ##??#???????? | | ??????????????????????# ## ####???????? | | ??????????????????????# ?## #???????? | | ?????????????????? ??? ??#######% #??????? | | ?????????????????????###????????## ? ? | | ????????????????????????#????????# | | ????????????????????????????????? | | ?????????????????????????????? ?? #? | | ??????????????????????????????? #####? | | ????????????????????????????????## ##????? | | ?????????????????????????????????## #?????? | | ???????????????????????????????????## #?????? | | ?????????????????????????????????????## ?????? | | ???????????????????????????????????????# ????? | | ????????????????????????????????????????# ????? | | ????????????????????????????????????????? ??????? | | ?????????????????????????????????????????????????? | | ?????????????????????????????????????????????????? | +----------------------------------------------------+ Best States ------------- Heat Dissipation 25 Energy Generation 10 Energy Capacity 125 Matter Stores 300 Matter Capacity 300 Sight Range 16 Terrain Scan Range 16 Terrain Scan Density 10 Evasion (%) 40 Recoil Reduction 2 Item Schematics ----------------- None Robot Schematics ------------------ None Fabricated ------------ Nothing Repaired ---------- Nothing Alien Tech Used ----------------- None Achievements -------------- None Challenges ------------ None Game ------ Seed ForceGravitonPod Manual? 0 Play Time 00:03:41 Cumulative 106.1 hours Start 2025.06.01 @ 23:53:19 End 2025.06.01 @ 23:56:09 Sessions 1 Manual Loads 0 Difficulty Rogue Special Mode None Game No. 207 Rogue 207 Adventurer 0 Explorer 0 Win Type - Total 0 Types 0/0/0/0/0/0/0/0/0/0 Lore% 26 Gallery% 44 Achievement% 34 Wizard Run 0 Options --------- Layout 1 ASCII 0 Keyboard 1 Movement Arrows Keybinds 0 Fullscreen 2 Font 24/Smallcaps Map View 50x35 Zoom Use 0% Tactical HUD 1 Map Filters NONE Filters NONE Steam 1 RUN: 883f95d0-24ff-47de-8219-465d74107e26